fUST/lending_fUST_20250928
["ID","MTS","AMOUNT","RATE_DAILY","PERIOD"]
[388079634,1759007450446,-500.0,0.00035873,5]
[388079635,1759007450455,-500.0,0.00035873,5]
[388079636,1759007450465,-500.0,0.00035873,5]
[388079637,1759007450475,-500.0,0.00035873,5]
[388079638,1759007450486,-150.0,0.00035873,5]
[388079639,1759007450495,-500.0,0.00035873,5]
[388079640,1759007450505,-500.0,0.00035873,5]
[388079641,1759007450515,-500.0,0.00035873,5]
[388079642,1759007450525,-155.74553295,0.00035873,5]
[388079643,1759007450538,-500.0,0.00035873,5]
[388079644,1759007450548,-203.19238064,0.00035873,5]
[388079645,1759007450558,-500.0,0.00035873,5]
[388079646,1759007450568,-500.0,0.00035873,5]
[388079647,1759007450579,-500.0,0.00035873,5]
[388079648,1759007450589,-503.64207553,0.00035873,5]
[388079649,1759007450599,-500.0,0.00035873,5]
[388079650,1759007450609,-500.0,0.00035873,5]
[388079651,1759007450619,-500.0,0.00035873,5]
[388079652,1759007450629,-500.0,0.00035873,5]
[388079653,1759007450638,-500.0,0.00035873,5]
[388079654,1759007450648,-162.534835,0.00035873,30]
[388079655,1759007450658,-151.0,0.00035873,30]
[388079656,1759007450668,-151.0,0.00035873,30]
[388079657,1759007450678,-297.450623,0.00035873,14]
[388079658,1759007450688,-151.0,0.00035873,30]
[388079659,1759007450698,-1131.19280445,0.00035875,2]
[388079660,1759007450708,-576.91313063,0.0003589,9]
[388079661,1759007450718,-480.0,0.0003589,9]
[388079662,1759007450727,-480.0,0.0003589,9]
[388079663,1759007450737,-480.0,0.0003589,9]
[388079664,1759007450747,-480.0,0.0003589,9]
[388079665,1759007450757,-480.0,0.0003589,9]
[388079666,1759007450767,-480.0,0.0003589,9]
[388079667,1759007450776,-480.0,0.0003589,9]
[388079668,1759007450786,-480.0,0.0003589,9]
[388079669,1759007450796,-703.86,0.0003589,9]
[388079670,1759007450805,-480.0,0.0003589,7]
[388079671,1759007450815,-680.54,0.0003589,9]
[388079672,1759007450825,-502.08,0.0003589,9]
[388079673,1759007450835,-481.16,0.0003589,9]
[388079674,1759007450845,-480.0,0.0003589,9]
[388079675,1759007450855,-480.0,0.0003589,9]
[388079676,1759007450865,-480.0,0.0003589,9]
[388079677,1759007450874,-563.28755616,0.0003589,9]
[388079678,1759007450885,-480.0,0.0003589,9]
[388079679,1759007450895,-480.0,0.0003589,9]
[388079680,1759007450905,-480.0,0.0003589,9]
[388079681,1759007450915,-480.0,0.0003589,9]
[388079682,1759007450925,-480.0,0.0003589,9]
[388079683,1759007450935,-174.12492746,0.0003589,9]
[388079684,1759007450946,-160.0,0.0003589,30]
[388079685,1759007450956,-480.0,0.0003589,9]
[388079686,1759007450966,-480.0,0.0003589,9]
[388079687,1759007450975,-672.91,0.0003589,9]
[388079688,1759007450986,-480.0,0.0003589,9]
[388079689,1759007450996,-480.0,0.0003589,9]
[388079690,1759007451005,-480.0,0.0003589,9]
[388079691,1759007451015,-480.0,0.0003589,9]
[388079692,1759007451025,-480.0,0.0003589,9]
[388079693,1759007451034,-480.0,0.0003589,9]
[388079694,1759007451044,-480.0,0.0003589,9]
[388079695,1759007451054,-480.0,0.0003589,9]
[388079696,1759007451063,-480.0,0.0003589,9]
[388079697,1759007451073,-480.0,0.0003589,9]
[388079698,1759007451083,-914.79,0.0003589,9]
[388079699,1759007451092,-480.0,0.0003589,9]
[388079700,1759007451102,-480.0,0.0003589,9]
[388079701,1759007451112,-480.0,0.0003589,9]
[388079702,1759007451122,-206.77227081,0.0003589,9]
[388079703,1759007451132,-484.62491988,0.0003589,9]
[388079704,1759007451141,-480.0,0.0003589,9]
[388079705,1759007451150,-480.0,0.0003589,9]
[388079706,1759007451160,-480.0,0.0003589,9]
[388079707,1759007451170,-480.0,0.0003589,9]
[388079708,1759007451179,-480.0,0.0003589,9]
[388079709,1759007451189,-559.68,0.0003589,9]
[388079710,1759007451198,-480.0,0.0003589,9]
[388079711,1759007451208,-480.0,0.0003589,9]
[388079712,1759007451218,-512.70298734,0.0003589,9]
[388079713,1759007451228,-480.0,0.0003589,9]
[388079714,1759007451238,-480.0,0.0003589,9]
[388079715,1759007451247,-840.41,0.0003589,9]
[388079716,1759007451256,-774.31,0.0003589,9]
[388079717,1759007451266,-593.17,0.0003589,9]
[388079718,1759007451275,-480.0,0.0003589,9]
[388079719,1759007451285,-480.0,0.0003589,9]
[388079720,1759007451294,-480.0,0.0003589,9]
[388079721,1759007451304,-480.0,0.0003589,9]
[388079722,1759007451313,-480.0,0.0003589,9]
[388079723,1759007451323,-480.0,0.0003589,9]
[388079724,1759007451333,-480.0,0.0003589,9]
[388079725,1759007451342,-480.0,0.0003589,9]
[388079726,1759007451356,-480.0,0.0003589,9]
[388079727,1759007451366,-480.0,0.0003589,9]
[388079728,1759007451376,-703.96,0.0003589,9]
[388079729,1759007451386,-480.0,0.0003589,9]
[388079730,1759007451395,-480.0,0.0003589,9]
[388079731,1759007451405,-480.0,0.0003589,9]
[388079732,1759007451415,-480.0,0.0003589,9]
[388079733,1759007451426,-480.0,0.0003589,9]
[388079734,1759007451436,-480.0,0.0003589,9]
[388079735,1759007451446,-151.0,0.0003589,30]
[388079736,1759007451455,-151.0,0.0003589,30]
[388079737,1759007451465,-481.51255812,0.0003589,9]
[388079738,1759007451475,-480.0,0.0003589,9]
[388079739,1759007451484,-151.0,0.0003589,30]
[388079740,1759007451494,-189.3309625,0.0003589,30]
[388079741,1759007451503,-480.0,0.0003589,9]
[388079742,1759007451513,-480.0,0.0003589,9]
[388079743,1759007451523,-480.0,0.0003589,9]
[388079744,1759007451532,-480.0,0.0003589,9]
[388079745,1759007451542,-480.0,0.0003589,9]
[388079746,1759007451552,-480.0,0.0003589,9]
[388079747,1759007451561,-480.0,0.0003589,9]
[388079748,1759007451570,-495.39724714,0.0003589,9]
[388079749,1759007451580,-151.0,0.0003589,30]
[388079750,1759007451590,-480.0,0.0003589,9]
[388079751,1759007451600,-480.0,0.0003589,9]
[388079752,1759007451609,-480.0,0.0003589,9]
[388079753,1759007451619,-480.0,0.0003589,9]
[388079754,1759007451629,-480.0,0.0003589,9]
[388079755,1759007451639,-2104.76,0.0003589,9]
[388079756,1759007451649,-151.0,0.0003589,30]
[388079757,1759007451658,-517.48,0.0003589,9]
[388079758,1759007451668,-153.861515,0.0003589,30]
[388079759,1759007451677,-151.0,0.0003589,30]
[388079760,1759007451688,-151.0,0.0003589,30]
[388079761,1759007451697,-151.0,0.0003589,30]
[388079762,1759007451707,-151.0,0.0003589,30]
[388079763,1759007451716,-480.0,0.0003589,9]
[388079764,1759007451726,-494.12456262,0.0003589,9]
[388079765,1759007451736,-480.0,0.0003589,9]
[388079766,1759007451745,-592.73162535,0.0003589,9]
[388079767,1759007451755,-480.0,0.0003589,9]
[388079768,1759007451765,-643.93,0.0003589,9]
[388079769,1759007451775,-480.0,0.0003589,9]
[388079770,1759007451784,-480.0,0.0003589,9]
[388079771,1759007451794,-480.0,0.0003589,9]
[388079772,1759007451803,-480.0,0.0003589,9]
[388079773,1759007451813,-480.0,0.0003589,9]
[388079774,1759007451822,-480.0,0.0003589,9]
[388079775,1759007451832,-480.0,0.0003589,9]
[388079776,1759007451842,-480.0,0.0003589,9]
[388079777,1759007451851,-582.55,0.0003589,9]
[388079778,1759007451862,-480.0,0.0003589,9]
[388079779,1759007451871,-548.58427824,0.0003589,9]
[388079780,1759007451881,-372.27747326,0.0003589,9]
[388079781,1759007452379,-107.72252674,0.0003589,9]
[388079782,1759007452388,-462.00087823,0.0003589,9]
[388079783,1759007452398,-480.0,0.0003589,9]
[388079784,1759007452407,-831.25,0.0003589,9]
[388079785,1759007452417,-500.0,0.0003589,9]
[388079786,1759007452426,-480.0,0.0003589,9]
[388079787,1759007452435,-544.11,0.0003589,9]
[388079788,1759007452446,-884.4,0.0003589,9]
[388079789,1759007452455,-151.0,0.0003589,30]
[388079790,1759007452464,-4594.31,0.0003589,9]
[388079791,1759007452474,-480.0,0.0003589,9]
[388079792,1759007452483,-151.0,0.0003589,30]
[388079793,1759007452492,-151.0,0.0003589,30]
[388079794,1759007452502,-480.0,0.0003589,9]
[388079795,1759007452511,-480.0,0.0003589,9]
[388079796,1759007452521,-151.0,0.0003589,30]
[388079797,1759007452530,-151.0,0.0003589,30]
[388079798,1759007452543,-653.41,0.0003589,9]
[388079799,1759007452552,-151.0,0.0003589,30]
[388079800,1759007452562,-151.0,0.0003589,30]
[388079801,1759007452571,-151.0,0.0003589,30]
[388079802,1759007452582,-281.927366,0.0003589,30]
[388079803,1759007452591,-563.85097826,0.0003589,9]
[388079804,1759007452600,-480.0,0.0003589,9]
[388079805,1759007452610,-151.0,0.0003589,30]
[388079806,1759007452621,-151.0,0.0003589,30]
[388079807,1759007452631,-480.0,0.0003589,9]
[388079808,1759007452639,-480.0,0.0003589,9]
[388079809,1759007452648,-151.0,0.0003589,30]
[388079810,1759007452658,-243.177624,0.0003589,30]
[388079811,1759007452668,-480.0,0.0003589,9]
[388079812,1759007452677,-480.0,0.0003589,9]
[388079813,1759007452686,-480.0,0.0003589,9]
[388079814,1759007452699,-985.09,0.0003589,9]
[388079815,1759007452721,-480.0,0.0003589,9]
[388079816,1759007452735,-480.0,0.0003589,9]
[388079817,1759007452753,-480.0,0.0003589,9]
[388079818,1759007452771,-480.0,0.0003589,9]
[388079819,1759007452790,-1000.0,0.0003589,9]
[388079820,1759007452807,-480.0,0.0003589,9]
[388079821,1759007452822,-480.0,0.0003589,9]
[388079822,1759007452839,-480.0,0.0003589,9]
[388079823,1759007452853,-855.49,0.0003589,9]
[388079824,1759007452866,-151.0,0.0003589,30]
[388079825,1759007452885,-151.0,0.0003589,30]
[388079826,1759007452902,-480.0,0.0003589,9]
[388079827,1759007452920,-151.0,0.0003589,30]
[388079828,1759007452932,-151.0,0.0003589,30]
[388079829,1759007452949,-151.0,0.0003589,30]
[388079830,1759007452964,-480.0,0.0003589,9]
[388079831,1759007452977,-600.97,0.0003589,9]
[388079832,1759007452991,-480.0,0.0003589,9]
[388079833,1759007453004,-480.0,0.0003589,9]
[388079834,1759007453020,-480.0,0.0003589,9]
[388079835,1759007453033,-480.0,0.0003589,9]
[388079836,1759007453047,-480.0,0.0003589,9]
[388079837,1759007453061,-480.0,0.0003589,9]
[388079838,1759007453074,-480.0,0.0003589,9]
[388079839,1759007453089,-151.0,0.0003589,30]
[388079840,1759007453103,-152.946929,0.0003589,30]
[388079841,1759007453118,-480.0,0.0003589,2]
[388079842,1759007453132,-480.0,0.0003589,9]
[388079843,1759007453146,-480.0,0.0003589,9]
[388079844,1759007453160,-480.0,0.0003589,9]
[388079845,1759007453174,-151.0,0.0003589,30]
[388079846,1759007453188,-151.0,0.0003589,30]
[388079847,1759007453203,-1259.69,0.0003589,9]
[388079848,1759007453217,-480.0,0.0003589,9]
[388079849,1759007453231,-610.50181355,0.0003589,9]
[388079850,1759007453246,-480.0,0.0003589,9]
[388079851,1759007453260,-151.0,0.0003589,30]
[388079852,1759007453274,-480.0,0.0003589,9]
[388079853,1759007453289,-480.0,0.0003589,9]
[388079854,1759007453303,-151.0,0.0003589,30]
[388079855,1759007453316,-480.0,0.0003589,9]
[388079856,1759007453332,-480.0,0.0003589,9]
[388079857,1759007453345,-480.0,0.0003589,9]
[388079858,1759007453358,-480.0,0.0003589,9]
[388079859,1759007453372,-879.89,0.0003589,9]
[388079860,1759007453386,-480.0,0.0003589,9]
[388079861,1759007453400,-480.0,0.0003589,9]
[388079862,1759007453413,-625.99,0.0003589,9]
[388079863,1759007453427,-480.0,0.0003589,9]
[388079864,1759007453440,-480.0,0.0003589,9]
[388079865,1759007453454,-480.0,0.0003589,9]
[388079866,1759007453468,-480.0,0.0003589,9]
[388079867,1759007453481,-480.0,0.0003589,9]
[388079868,1759007453494,-480.0,0.0003589,9]
[388079869,1759007453509,-151.0,0.0003589,30]
[388079870,1759007453522,-480.0,0.0003589,9]
[388079871,1759007453536,-151.0,0.0003589,30]
[388079872,1759007453550,-480.0,0.0003589,9]
[388079873,1759007453564,-1149.51,0.0003589,9]
[388079874,1759007453578,-480.0,0.0003589,9]
[388079875,1759007453592,-480.0,0.0003589,9]
[388079876,1759007453607,-480.0,0.0003589,9]
[388079877,1759007453621,-480.0,0.0003589,9]
[388079878,1759007453635,-480.0,0.0003589,9]
[388079879,1759007453649,-576.05,0.0003589,9]
[388079880,1759007453663,-480.0,0.0003589,9]
[388079881,1759007453677,-629.48,0.0003589,9]
[388079882,1759007453691,-585.0,0.0003589,9]
[388079883,1759007453706,-480.0,0.0003589,9]
[388079884,1759007453716,-151.0,0.0003589,30]
[388079885,1759007453726,-480.0,0.0003589,9]
[388079886,1759007453735,-480.0,0.0003589,9]
[388079887,1759007453745,-638.92,0.0003589,9]
[388079888,1759007453755,-480.0,0.0003589,9]
[388079889,1759007453764,-608.56,0.0003589,9]
[388079890,1759007453774,-14276.11969341,0.0003589,9]
[388079891,1759007453792,-2904.79030659,0.0003589,9]
[388079892,1759007453802,-480.0,0.0003589,9]
[388079893,1759007453812,-480.0,0.0003589,9]
[388079894,1759007453821,-480.0,0.0003589,9]
[388079895,1759007453831,-480.0,0.0003589,9]
[388079896,1759007453840,-410.91467925,0.0003589,9]
[388079897,1759007454525,-480.0,0.00035616,9]
[388079898,1759007454536,-151.0,0.0003579,30]
[388079899,1759007454550,-69.08532075,0.0003589,9]
[388079900,1759007454560,-482.0697409,0.0003589,9]
[388079901,1759007454570,-657.9389756,0.0003589,9]
[388079902,1759007455081,-480.0,0.00035616,9]
[388079903,1759007455093,-480.0,0.00035616,9]
[388079904,1759007455102,-480.0,0.00035616,9]
[388079905,1759007455112,-480.0,0.00035616,9]
[388079906,1759007455122,-480.0,0.00035616,9]
[388079907,1759007455131,-480.0,0.00035616,9]
[388079908,1759007455141,-480.0,0.00035616,9]
[388079909,1759007455151,-480.0,0.00035616,9]
[388079910,1759007455160,-510.1110244,0.0003589,9]
[388079911,1759007455169,-842.69,0.0003589,9]
[388079912,1759007455178,-480.0,0.0003589,9]
[388079913,1759007455188,-480.0,0.0003589,9]
[388079914,1759007455198,-482.94037169,0.0003589,9]
[388079915,1759007455207,-480.0,0.0003589,9]
[388079916,1759007455217,-480.0,0.0003589,9]
[388079917,1759007455227,-946.47,0.0003589,9]
[388079918,1759007455236,-198.99915018,0.0003589,9]
[388079919,1759007455248,-281.00084982,0.0003589,9]
[388079920,1759007455258,-480.0,0.0003589,9]
[388079921,1759007455267,-492.87321901,0.0003589,9]
[388079922,1759007455277,-480.0,0.0003589,9]
[388079923,1759007455286,-480.0,0.0003589,9]
[388079924,1759007455295,-1028.18,0.0003589,9]
[388079925,1759007455304,-480.0,0.0003589,9]
[388079926,1759007455313,-603.32,0.0003589,9]
[388079927,1759007455322,-480.87122977,0.0003589,9]
[388079928,1759007455331,-320.96989884,0.0003589,9]
[388079929,1759007455340,-151.0,0.0003589,30]
[388079930,1759007455349,-480.0,0.0003589,9]
[388079931,1759007455358,-480.0,0.0003589,9]
[388079932,1759007455368,-480.0,0.0003589,9]
[388079933,1759007455377,-480.0,0.0003589,7]
[388079934,1759007455385,-807.95,0.0003589,9]
[388079935,1759007455395,-480.0,0.0003589,9]
[388079936,1759007455404,-480.0,0.0003589,9]
[388079937,1759007455413,-480.0,0.0003589,9]
[388079938,1759007455423,-480.0,0.0003589,9]
[388079939,1759007455432,-480.0,0.0003589,9]
[388079940,1759007455441,-480.0,0.0003589,9]
[388079941,1759007455450,-480.0,0.0003589,9]
[388079942,1759007455459,-480.0,0.0003589,9]
[388079943,1759007455469,-480.0,0.0003589,9]
[388079944,1759007455478,-234.1896257,0.0003589,9]
[388079945,1759007455487,-480.0,0.0003589,9]
[388079946,1759007455496,-480.0,0.0003589,9]
[388079947,1759007455505,-480.0,0.0003589,9]
[388079948,1759007455515,-480.0,0.0003589,9]
[388079949,1759007455525,-480.0,0.0003589,9]
[388079950,1759007455534,-480.0,0.0003589,9]
[388079951,1759007455543,-480.0,0.0003589,9]
[388079952,1759007455552,-480.0,0.0003589,9]
[388079953,1759007455561,-988.27,0.0003589,9]
[388079954,1759007455571,-480.0,0.0003589,9]
[388079955,1759007455580,-480.0,0.0003589,9]
[388079956,1759007455589,-480.0,0.0003589,9]
[388079957,1759007455599,-598.34,0.0003589,9]
[388079958,1759007455608,-461.91520265,0.0003589,9]
[388079959,1759007455618,-4002.74,0.0003589,9]
[388079960,1759007455627,-1393.28,0.0003589,9]
[388079961,1759007455636,-480.0,0.0003589,9]
[388079962,1759007455646,-480.0,0.0003589,9]
[388079963,1759007455655,-1325.40240628,0.0003589,9]
[388079964,1759007455668,-1694.23759372,0.0003589,9]
[388079965,1759007455677,-188.593737,0.0003589,30]
[388079966,1759007455687,-188.593737,0.0003589,30]
[388079967,1759007455697,-480.0,0.0003589,9]
[388079968,1759007455707,-480.0,0.0003589,9]
[388079969,1759007455717,-480.0,0.0003589,9]
[388079970,1759007455726,-480.0,0.0003589,9]
[388079971,1759007455736,-1686.17,0.0003589,9]
[388079972,1759007455745,-480.0,0.0003589,9]
[388079973,1759007455755,-480.0,0.0003589,9]
[388079974,1759007455764,-151.0,0.0003589,30]
[388079975,1759007455774,-480.0,0.0003589,9]
[388079976,1759007455783,-480.0,0.0003589,9]
[388079977,1759007455792,-480.0,0.0003589,9]
[388079978,1759007455802,-205.294795,0.0003589,30]
[388079979,1759007455812,-172.080768,0.0003589,30]
[388079980,1759007455821,-205.294795,0.0003589,30]
[388079981,1759007455831,-480.0,0.0003589,9]
[388079982,1759007455840,-480.0,0.0003589,9]
[388079983,1759007455850,-205.294795,0.0003589,30]
[388079984,1759007455860,-480.0,0.0003589,9]
[388079985,1759007455869,-205.294795,0.0003589,30]
[388079986,1759007455879,-509.44,0.0003589,9]
[388079987,1759007455888,-1325.23,0.0003589,9]
[388079988,1759007455898,-480.0,0.0003589,9]
[388079989,1759007455908,-539.98314783,0.0003589,9]
[388079990,1759007455918,-634.92,0.0003589,9]
[388079991,1759007455928,-480.0,0.0003589,9]
[388079992,1759007455938,-480.0,0.0003589,9]
[388079993,1759007455948,-825.25,0.0003589,9]
[388079994,1759007455958,-151.838342,0.0003589,30]
[388079995,1759007455967,-646.52,0.0003589,9]
[388079996,1759007455977,-572.93,0.0003589,9]
[388079997,1759007455987,-1094.08,0.0003589,9]
[388079998,1759007455996,-151.0,0.0003589,30]
[388079999,1759007456007,-552.8584868,0.0003589,9]
[388080000,1759007456016,-480.0,0.0003589,9]
[388080001,1759007456025,-196.893576,0.0003589,30]
[388080002,1759007456035,-480.0,0.0003589,9]
[388080003,1759007456044,-480.0,0.0003589,9]
[388080004,1759007456053,-151.0,0.0003589,30]
[388080005,1759007456062,-151.0,0.0003589,30]
[388080006,1759007456071,-1029.68,0.0003589,9]
[388080007,1759007456081,-558.36,0.0003589,9]
[388080008,1759007456090,-151.0,0.0003589,30]
[388080009,1759007456099,-177.432984,0.0003589,30]
[388080010,1759007456108,-480.0,0.0003589,9]
[388080011,1759007456117,-480.0,0.0003589,9]
[388080012,1759007456127,-600.0,0.0003589,9]
[388080013,1759007456136,-866.46,0.0003589,9]
[388080014,1759007456146,-716.35,0.0003589,9]
[388080015,1759007456157,-214.723511,0.0003589,30]
[388080016,1759007456166,-214.723511,0.0003589,30]
[388080017,1759007456177,-480.0,0.0003589,9]
[388080018,1759007456186,-520.0,0.0003589,3]
[388080019,1759007456196,-214.723511,0.0003589,30]
[388080020,1759007456205,-480.0,0.0003589,9]
[388080021,1759007456215,-480.0,0.0003589,9]
[388080022,1759007456224,-214.723511,0.0003589,30]
[388080023,1759007456234,-480.0,0.0003589,9]
[388080024,1759007456243,-480.0,0.0003589,9]
[388080025,1759007456252,-548.36,0.0003589,9]
[388080026,1759007456261,-480.0,0.0003589,9]
[388080027,1759007456271,-480.0,0.0003589,9]
[388080028,1759007456280,-480.0,0.0003589,9]
[388080029,1759007456289,-480.0,0.0003589,9]
[388080030,1759007456299,-480.0,0.0003589,9]
[388080031,1759007456308,-1083.14,0.0003589,9]
[388080032,1759007456318,-480.0,0.0003589,9]
[388080033,1759007456327,-985.25,0.0003589,9]
[388080034,1759007456337,-480.0,0.0003589,9]
[388080035,1759007456346,-480.0,0.0003589,9]
[388080036,1759007456356,-480.0,0.0003589,9]
[388080037,1759007456364,-480.0,0.0003589,9]
[388080038,1759007456374,-480.77493014,0.0003589,9]
[388080039,1759007456383,-480.0,0.0003589,9]
[388080040,1759007456392,-480.0,0.0003589,9]
[388080041,1759007456401,-480.0,0.0003589,9]
[388080042,1759007456410,-890.71,0.0003589,9]
[388080043,1759007456421,-480.0,0.0003589,9]
[388080044,1759007456430,-480.0,0.0003589,9]
[388080045,1759007456440,-152.346166,0.0003589,30]
[388080046,1759007456450,-956.16,0.0003589,9]
[388080047,1759007456459,-656.41,0.0003589,9]
[388080048,1759007456469,-480.0,0.0003589,9]
[388080049,1759007456478,-151.0,0.0003589,30]
[388080050,1759007456487,-480.0,0.0003589,9]
[388080051,1759007456497,-480.0,0.0003589,9]
[388080052,1759007456506,-1026.37,0.0003589,9]
[388080053,1759007456515,-480.0,0.0003589,9]
[388080054,1759007456524,-480.0,0.0003589,9]
[388080055,1759007456535,-805.55,0.0003589,9]
[388080056,1759007456545,-1168.56,0.0003589,9]
[388080057,1759007456554,-537.19568601,0.0003589,9]
[388080058,1759007456564,-480.0,0.0003589,9]
[388080059,1759007456574,-480.0,0.0003589,9]
[388080060,1759007456584,-480.0,0.0003589,9]
[388080061,1759007456593,-480.0,0.0003589,9]
[388080062,1759007456603,-484.64,0.0003589,9]
[388080063,1759007456614,-480.0,0.0003589,9]
[388080064,1759007456623,-1328.9,0.0003589,9]
[388080065,1759007456633,-151.0,0.0003589,30]
[388080066,1759007456642,-480.0,0.0003589,9]
[388080067,1759007456651,-151.0,0.0003589,30]
[388080068,1759007456660,-480.0,0.0003589,9]
[388080069,1759007456670,-174.42549,0.0003589,30]
[388080070,1759007456679,-502.53,0.0003589,9]
[388080071,1759007456688,-483.84,0.0003589,9]
[388080072,1759007456698,-551.91,0.0003589,9]
[388080073,1759007456707,-480.0,0.0003589,9]
[388080074,1759007456716,-572.53,0.0003589,9]
[388080075,1759007456725,-522.59,0.0003589,9]
[388080076,1759007456734,-480.0,0.0003589,9]
[388080077,1759007456744,-480.0,0.0003589,9]
[388080078,1759007456753,-151.0,0.0003589,30]
[388080079,1759007456762,-730.97,0.0003589,9]
[388080080,1759007456771,-151.0,0.0003589,30]
[388080081,1759007456780,-480.0,0.0003589,9]
[388080082,1759007456789,-480.0,0.0003589,9]
[388080083,1759007456798,-480.0,0.0003589,9]
[388080084,1759007456807,-913.89,0.0003589,9]
[388080085,1759007456816,-480.0,0.0003589,9]
[388080086,1759007456825,-866.23,0.0003589,9]
[388080087,1759007456834,-480.0,0.0003589,9]
[388080088,1759007456844,-480.0,0.0003589,9]
[388080089,1759007456853,-480.0,0.0003589,9]
[388080090,1759007456863,-480.0,0.0003589,9]
[388080091,1759007456872,-808.62,0.0003589,9]
[388080092,1759007456880,-480.0,0.0003589,9]
[388080093,1759007456889,-182.281064,0.0003589,30]
[388080094,1759007456899,-182.281064,0.0003589,30]
[388080095,1759007456908,-705.17,0.0003589,9]
[388080096,1759007456917,-182.281064,0.0003589,30]
[388080097,1759007456926,-480.0,0.0003589,9]
[388080098,1759007456935,-971.53,0.0003589,9]
[388080099,1759007456944,-182.281064,0.0003589,30]
[388080100,1759007456953,-480.0,0.0003589,9]
[388080101,1759007456962,-236.373266,0.0003589,30]
[388080102,1759007456971,-480.0,0.0003589,9]
[388080103,1759007456980,-480.0,0.0003589,9]
[388080104,1759007456989,-480.0,0.0003589,9]
[388080105,1759007456998,-236.373266,0.0003589,30]
[388080106,1759007457007,-480.0,0.0003589,9]
[388080107,1759007457017,-480.0,0.0003589,9]
[388080108,1759007457026,-236.373266,0.0003589,30]
[388080109,1759007457035,-480.0,0.0003589,9]
[388080110,1759007457045,-236.373266,0.0003589,30]
[388080111,1759007457055,-480.0,0.0003589,9]
[388080112,1759007457064,-744.43,0.0003589,9]
[388080113,1759007457073,-231.73042,0.0003589,30]
[388080114,1759007457083,-151.0,0.0003589,30]
[388080115,1759007457092,-1011.13,0.0003589,9]
[388080116,1759007457101,-480.0,0.0003589,9]
[388080117,1759007457110,-151.0,0.0003589,30]
[388080118,1759007457122,-941.62,0.0003589,9]
[388080119,1759007457134,-480.0,0.0003589,9]
[388080120,1759007457149,-480.0,0.0003589,9]
[388080121,1759007457159,-151.0,0.0003589,30]
[388080122,1759007457169,-151.0,0.0003589,30]
[388080123,1759007457179,-480.0,0.0003589,9]
[388080124,1759007457188,-231.73042,0.0003589,30]
[388080125,1759007457198,-804.0,0.0003589,9]
[388080126,1759007457207,-480.0,0.0003589,9]
[388080127,1759007457216,-231.73042,0.0003589,30]
[388080128,1759007457225,-480.0,0.0003589,9]
[388080129,1759007457236,-231.73042,0.0003589,30]
[388080130,1759007457245,-480.0,0.0003589,9]
[388080131,1759007457255,-480.0,0.0003589,9]
[388080132,1759007457264,-2132.17,0.0003589,9]
[388080133,1759007457273,-492.38997584,0.0003589,9]